fUSD/lending_fUSD_20251027
["ID","MTS","AMOUNT","RATE_DAILY","PERIOD"]
[392473076,1761533880815,-105.56410367,0.00039999,5]
[392473078,1761533884376,-313.74371615,0.00039999,5]
[392473079,1761533886463,-239.39478756,0.00039999,5]
[392473080,1761533888700,-275.29739262,0.00039999,5]
[392473081,1761533888721,-219.58888082,0.0004,30]
[392473082,1761533892184,-178.17581987,0.0004,30]
[392473083,1761533893882,-102.23529931,0.0004,30]
[392473084,1761533893903,-79.63960305,0.0004,30]
[392473085,1761533896912,-359.35313568,0.0004,30]
[392473086,1761533901825,-61.00726127,0.0004,30]
[392473087,1761533901848,-192.24885151,0.0004,30]
[392473088,1761533904671,-198.85070738,0.0004,30]
[392473089,1761533906199,-184.15160282,0.0004,30]
[392473090,1761533906221,-120.44913149,0.0004,30]
[392473091,1761533908963,-281.5440918,0.0004,30]
[392473092,1761533911726,-98.00677671,0.0004,30]
[392473093,1761533911747,-78.11371381,0.0004,30]
[392473094,1761533927728,-199.09074677,0.0004,30]
[392473095,1761533929897,-222.79553942,0.0004,30]
[392473096,1761533929919,-12.00551497,0.0004,30]
[392473097,1761533932049,-205.00777534,0.0004,30]
[392473098,1761533934608,-282.98670969,0.0004,30]
[392473099,1761533934630,-23.16906531,0.0004,30]
[392473100,1761533937880,-242.12630433,0.0004,30]
[392473101,1761533941841,-234.70463036,0.0004,30]
[392473102,1761533941868,-153.57686732,0.0004,30]
[392473103,1761533944810,-160.00058165,0.0004,30]
[392473104,1761533949024,-186.42255103,0.0004,30]
[392473105,1761533949046,-135.89510568,0.0004,30]
[392473106,1761533951884,-161.0,0.0004,30]
[392473107,1761533953391,-203.10489432,0.0004,30]
[392473108,1761533953414,-19.74916318,0.0004,30]
[392473109,1761533955639,-206.05585562,0.0004,30]
[392473110,1761533959961,-274.1949812,0.0004,30]
[392473111,1761533959984,-118.87951342,0.0004,30]
[392473112,1761533963431,-301.09059976,0.0004,30]
[392473113,1761533965002,-80.02988682,0.0004,30]
[392473114,1761533965026,-247.09911197,0.0004,30]
[392473115,1761533967677,-221.58844979,0.0004,30]
[392473116,1761533970453,-31.31243824,0.0004,30]
[392473117,1761533970478,-122.51353898,0.0004,30]
[392473119,1761533988233,-195.01483769,0.0004,30]
[392473120,1761533990275,-151.15918509,0.0004,30]
[392473121,1761533993058,-31.31243824,0.0004,30]
[392473122,1761533993082,-275.34872331,0.0004,30]
[392473123,1761533997462,-224.65127669,0.0004,30]
[392473124,1761533997490,-71.13872331,0.0004,30]
[392473126,1761533999652,-156.43564937,0.0004,30]
[392473127,1761534005399,-252.30135802,0.00039999,5]
[392473128,1761534007028,-50.69864198,0.00039999,5]
[392473129,1761534007054,-119.86098525,0.00039999,5]
[392473132,1761534010056,-171.1412062,0.00039999,5]
[392473133,1761534013551,-8.99780855,0.00039999,5]
[392473134,1761534013573,-274.88996654,0.00039999,5]
[392473135,1761534016114,-329.2281422,0.00039999,5]
[392473137,1761534024650,-160.77151376,0.00039999,5]
[392473139,1761534028367,-186.1103775,0.00039999,5]
[392473140,1761534028391,-34.68839968,0.0004,30]
[392473143,1761534047752,-242.47642431,0.00032,120]
[392473144,1761534047775,-111.83911978,0.0004,30]
[392473145,1761534053594,-148.51636685,0.0004,30]
[392473146,1761534053616,-101.48363315,0.0004,30]
[392473147,1761534056257,-398.51636685,0.0004,30]
[392473148,1761534056280,-5.51144126,0.0004,30]
[392473150,1761534077699,-150.0,0.00028936,2]
[392473151,1761534077722,-134.56512091,0.0004,30]
[392473152,1761534080548,-177.565662,0.0004,30]
[392473153,1761534082591,-322.434338,0.0003748,7]
[392473154,1761534084825,-177.565662,0.0003748,7]
[392473155,1761534084847,-62.52,0.0003748,7]
[392473156,1761534087483,-185.75706546,0.0003748,7]
[392473157,1761534089667,-154.74435891,0.0003748,7]
[392473159,1761534092980,-96.97857563,0.0003748,7]
[392473160,1761534093003,-75.34245993,0.0003748,7]
[392473161,1761534096771,-365.24873696,0.0003748,7]
[392473162,1761534099428,-59.40880311,0.0003748,7]
[392473163,1761534099455,-163.83420644,0.0003748,7]
[392473164,1761534101811,-205.8991315,0.0003748,7]
[392473165,1761534106829,-130.26666206,0.0003748,7]
[392473166,1761534106855,-316.75065842,0.0003748,7]
[392473167,1761534122725,-183.24934158,0.0003748,7]
[392473168,1761534122750,-14.49450872,0.0003748,7]
[392473169,1761534124634,-209.39728647,0.0003748,7]
[392473170,1761534126275,-243.161913,0.0003748,7]
[392473171,1761534129123,-32.94629181,0.0003748,7]
[392473172,1761534129154,-262.12365666,0.0003748,7]
[392473173,1761534132440,-237.87634334,0.0003748,7]
[392473174,1761534132466,-131.45461119,0.0003748,7]
[392473175,1761534134150,-368.54538881,0.0003748,7]
[392473176,1761534134174,-12.8613234,0.0003748,7]
[392473177,1761534135813,-205.44018074,0.0003748,7]
[392473178,1761534139038,-262.8694312,0.00039398,2]
[392473179,1761534141346,-265.79000233,0.00039398,2]
[392473180,1761534142916,-431.478466,0.00039398,2]
[392473181,1761534150602,-245.70097785,0.00039398,2]
[392473182,1761534152211,-189.72,0.00039398,2]
[392473183,1761534153920,-173.59118698,0.00039398,2]
[392473184,1761534159476,-360.87351719,0.00039398,2]
[392473185,1761534161094,-272.5191036,0.00039398,2]
[392473186,1761534165186,-167.34820755,0.00039398,2]
[392473187,1761534167355,-340.71947679,0.00039398,2]
[392473188,1761534169069,-378.94755823,0.00039398,2]
[392473189,1761534170857,-229.34319529,0.00039398,2]
[392473190,1761534172985,-270.06024962,0.00039398,2]
[392473192,1761534175478,-166.52519143,0.00039398,2]
[392473193,1761534180830,-357.09,0.00039398,2]
[392473194,1761534198457,-246.93165103,0.00039398,2]
[392473195,1761534200644,-213.39879437,0.00039398,2]
[392473196,1761534204933,-233.43304199,0.00039398,2]
[392473197,1761534207635,-396.55695801,0.00039398,2]
[392473198,1761534228977,-300.0,0.00039398,2]
[392473199,1761534231307,-183.0,0.00039398,2]
[392473200,1761534234516,-172.40135554,0.00039398,2]
[392473201,1761534238866,-431.32617249,0.00039398,2]
[392473202,1761534240453,-265.40826502,0.00039398,2]
[392473204,1761534245874,-254.95261105,0.00039398,2]
[392473205,1761534248565,-186.35000016,0.00039398,2]
[392473206,1761534252967,-369.19885163,0.00039398,2]
[392473207,1761534255559,-310.53559413,0.00039398,2]
[392473208,1761534257255,-162.4977247,0.00039398,2]
[392473209,1761534261494,-203.03436496,0.00039398,2]
[392473210,1761534264948,-177.17644981,0.00039398,2]
[392473211,1761534270163,-296.71355963,0.00039398,2]
[392473212,1761534271796,-179.50218907,0.00039398,2]
[392473213,1761534287710,-181.39636585,0.00034247,120]
[392473214,1761534289264,-155.47749682,0.00034247,120]
[392473215,1761534292425,-166.66666668,0.00034247,120]
[392473217,1761534295259,-268.39718434,0.00034247,120]
[392473218,1761534297139,-234.48375742,0.00034247,120]
[392473221,1761534301178,-30.57852889,0.00034247,120]
[392473222,1761534301209,-202.28175796,0.00038847,2]
[392473223,1761534308124,-178.84559996,0.00038847,2]
[392473224,1761534335924,-222.41910233,0.00038576,7]
[392473225,1761534337105,-277.58089767,0.00038576,7]
[392473226,1761534337127,-500.0,0.00038576,7]
[392473227,1761534337147,-500.0,0.00038576,7]
[392473228,1761534337167,-415.43372841,0.00038576,7]
[392473229,1761534340379,383.2,0.00021232,2]
[392473230,1761534340580,383.2,0.0002235,2]
[392473231,1761534340797,383.2,0.00023467,2]
[392473232,1761534340992,383.2,0.00024584,2]
[392473233,1761534341125,-84.56627159,0.00038576,7]
[392473234,1761534341148,-144.88105665,0.00038576,7]
[392473235,1761534343949,-261.07576494,0.00025702,2]
[392473236,1761534346420,-122.12423506,0.00025702,2]
[392473237,1761534346444,-153.55112626,0.00026819,2]
[392473238,1761534349773,-229.64887374,0.00026819,2]
[392473239,1761534349799,-36.11112626,0.00027937,2]
[392473240,1761534352593,-172.0307543,0.00027937,2]
[392473241,1761534355546,-175.05811944,0.00027937,2]
[392473242,1761534355569,-33.56786949,0.00029054,2]
[392473243,1761534357409,-211.95571822,0.00029054,2]
[392473244,1761534359551,-137.67641229,0.00029054,2]
[392473245,1761534359574,-158.07516696,0.00030172,2]
[392473246,1761534362243,-177.76250497,0.00030172,2]
[392473247,1761534364065,-47.36232807,0.00030172,2]
[392473248,1761534364090,-138.71646948,0.00031289,2]
[392473249,1761534366420,-239.50299266,0.00031289,2]
[392473251,1761534372575,-4.98053786,0.00031289,2]
[392473252,1761534372602,-323.45862842,0.00032407,2]
[392473253,1761534376060,-59.74137158,0.00032407,2]
[392473254,1761534376084,-94.50954025,0.00033524,2]
[392473255,1761534392740,-288.69045975,0.00033524,2]
[392473256,1761534392763,-62.53914815,0.00034642,2]
[392473257,1761534396439,-301.22351527,0.00034642,2]
[392473258,1761534400682,-19.43733658,0.00034642,2]
[392473259,1761534400706,-193.14176803,0.00035759,2]
[392473260,1761534404879,-190.05823197,0.00035759,2]
[392473261,1761534404903,-97.36266342,0.00036181,2]
[392473262,1761534407614,-180.7499272,0.00036181,2]
[392473263,1761534410423,-270.34297502,0.00036181,2]
[392473264,1761534413184,-245.63061914,0.00036181,2]
[392473265,1761534416911,-149.85871572,0.00036181,2]
[392473266,1761534416935,-198.46971435,0.00036877,2]
[392473268,1761534419967,-184.73028565,0.00036877,2]
[392473269,1761534419990,-23.66909521,0.00037804,2]
[392473270,1761534422324,-258.17058828,0.00037804,2]
[392473271,1761534424682,-250.0022515,0.00037804,2]
[392473272,1761534428347,-278.32738601,0.00037804,2]
[392473273,1761534428372,-98.64036249,0.00037994,2]
[392473274,1761534430736,-263.96721746,0.00037994,2]
[392473275,1761534433441,-20.59242005,0.00037994,2]
[392473276,1761534433464,-174.40757995,0.00038575,5]
[392473277,1761534437595,-125.59242005,0.00038575,5]
[392473278,1761534437629,-136.39757995,0.00038575,4]
[392473279,1761534440322,-163.60242005,0.00038575,4]
[392473280,1761534440347,-62.23402443,0.00038847,2]
[392473281,1761534442517,-322.5282868,0.00038847,2]
[392473282,1761534445433,-285.78371034,0.00038847,2]
[392473284,1761534447537,-228.4215338,0.00038847,2]
[392473285,1761534449263,-235.34959081,0.00038847,2]
[392473286,1761534451998,-161.99298482,0.00038847,2]
[392473287,1761534467682,-237.30421678,0.00038847,2]
[392473288,1761534467704,-178.01578322,0.00039,30]
[392473289,1761534470672,-177.74955,0.00039,30]
[392473290,1761534473045,-300.80112521,0.00039,30]
[392473291,1761534476641,-371.75753306,0.00039,30]
[392473292,1761534479444,-313.46625104,0.00039,30]
[392473293,1761534481542,-179.42433632,0.00039,30]
[392473294,1761534485393,-162.76987419,0.00038805,2]
[392473295,1761534487928,-189.89601949,0.00038805,2]
[392473296,1761534492403,-300.0,0.00038805,2]
[392473297,1761534494623,-196.56359566,0.00038805,2]
[392473298,1761534512778,-183.00646124,0.00038805,2]
[392473299,1761534514976,-163.7874341,0.00038805,2]
[392473300,1761534519021,-456.06701418,0.00038805,2]
[392473301,1761534524237,-280.04038811,0.00038805,2]
[392473302,1761534538537,-219.95961189,0.00038805,2]
[392473303,1761534540308,-373.01229337,0.00038805,2]
[392473304,1761534557634,-228.17164035,0.00037696,2]
[392473307,1761534559675,-463.57410408,0.00037696,2]
[392473314,1761534631995,-1748.22741199,0.00037596,60]
[392473315,1761534632004,-364.81497449,0.00037696,2]
[392473316,1761534632047,-3609.63987648,0.00037696,2]
[392473317,1761534632057,-253.90417528,0.0003825,120]
[392473318,1761534632067,-300.0,0.00038999,5]
[392473319,1761534632076,-300.0,0.00038999,5]
[392473320,1761534632086,-1200.0,0.00038999,5]
[392473321,1761534632096,-400.0,0.00038999,5]
[392473322,1761534632105,-8610.498945,0.00039,30]
[392473323,1761534632115,-300.0,0.00039111,5]
[392473324,1761534632124,-301.0,0.00039111,5]
[392473325,1761534632133,-383.2,0.00039112,2]
[392473326,1761534632144,-526.48538715,0.00039398,2]
[392473327,1761534632154,-151.0,0.00039398,2]
[392473328,1761534632163,-182.54967149,0.00039398,2]
[392473329,1761534632173,-150.0,0.00039822,4]
[392473330,1761534632181,-150.0,0.00039822,4]
[392473331,1761534632190,-150.00000001,0.00039822,4]
[392473332,1761534632199,-444.0,0.00039986,90]
[392473333,1761534632209,-500.0,0.0004,30]
[392473334,1761534632219,-500.0,0.0004,30]
[392473335,1761534632228,-578.69744319,0.0004,30]
[392473336,1761534632237,-192.53619543,0.0004,30]
[392473337,1761534632247,-500.0,0.0004,30]
[392473338,1761534632255,-500.0,0.0004,30]
[392473339,1761534632266,-500.0,0.0004,30]
[392473342,1761534632437,-500.0,0.0004,30]
[392473343,1761534632448,-383.2,0.00040229,2]
[392473344,1761534632458,-943.9449005,0.00040512,2]
[392473345,1761534632467,-300.0,0.00041093,4]
[392473346,1761534632477,-500.0,0.00041094,31]
[392473347,1761534632486,-500.0,0.00041094,7]
[392473348,1761534632496,-500.0,0.00041094,7]
[392473349,1761534632506,-500.0,0.00041094,31]
[392473351,1761534632515,-500.0,0.00041094,31]
[392473352,1761534632524,-500.0,0.00041094,7]
[392473353,1761534632534,-500.0,0.00041094,31]
[392473354,1761534632543,-500.0,0.00041094,31]
[392473355,1761534632552,-192.19264924,0.00041094,7]
[392473357,1761534632561,-500.0,0.00041094,31]
[392473359,1761534632570,-500.0,0.00041094,31]
[392473361,1761534632580,-500.0,0.00041094,31]
[392473363,1761534632589,-549.12379822,0.00041094,31]
[392473364,1761534632598,-500.0,0.00041094,31]
[392473367,1761534632608,-500.0,0.00041094,31]
[392473369,1761534632617,-500.0,0.00041094,31]
[392473371,1761534632626,-500.0,0.00041094,31]
[392473373,1761534632636,-500.0,0.00041094,31]
[392473374,1761534632645,-500.0,0.00041094,31]
[392473375,1761534632654,-500.0,0.00041094,31]
[392473376,1761534632667,-369.36091278,0.00041094,31]
[392473377,1761534632675,-592.97190526,0.00041094,31]
[392473378,1761534632685,-500.0,0.00041094,31]
[392473379,1761534632694,-191.74574443,0.00041094,31]
[392473380,1761534632703,-1587.18,0.00041096,2]
[392473381,1761534632712,-6009.22,0.00041096,2]
[392473382,1761534632721,-9999.99,0.00041096,2]
[392473383,1761534632730,-14649.19,0.00041096,2]
[392473384,1761534632739,-197.87,0.00041096,2]
[392473385,1761534632749,-6467.97,0.00041096,2]
[392473386,1761534632758,-1950.47,0.00041096,2]
[392473387,1761534632767,-150.99,0.00041096,2]
[392473388,1761534632776,-5693.95,0.00041096,2]
[392473389,1761534632786,-1667.84926489,0.000411,2]
[392473390,1761534632795,-383.2,0.00041347,2]
[392473391,1761534632804,-1040.73613158,0.00041466,120]
[392473392,1761534632813,-250.0,0.00041466,120]
[392473393,1761534632823,-195.0,0.00041466,120]
[392473394,1761534632832,-560.0,0.00041642,5]
[392473395,1761534632841,-387.82,0.00041911,2]
[392473396,1761534632851,-221.37,0.00042,30]
[392473397,1761534632860,-818.0,0.00042454,2]
[392473398,1761534632869,-1270.0,0.00042454,2]
[392473399,1761534632878,-383.2,0.00042464,2]
[392473400,1761534632888,-1041.1700861,0.00042476,2]
[392473401,1761534632897,-179.56,0.00042556,2]
[392473402,1761534632907,-250.0,0.00042685,120]
[392473403,1761534632917,-188.0,0.0004273,2]
[392473404,1761534632926,-150.0,0.00042774,2]
[392473405,1761534632935,-220.0,0.00042848,2]
[392473406,1761534632944,-220.0,0.00042935,7]
[392473407,1761534632954,-263.28462085,0.00042978,2]
[392473408,1761534632964,-150.0,0.00043001,7]
[392473409,1761534632973,-167.98,0.00043054,2]
[392473410,1761534632983,-155.7,0.00043299,120]
[392473411,1761534632992,-186.0,0.00043338,2]
[392473412,1761534633001,-186.84061493,0.00043354,67]
[392473413,1761534633010,-500.0,0.00043356,60]
[392473414,1761534633020,-512.84051018,0.00043356,60]
[392473415,1761534633029,-220.0,0.00043404,7]
[392473416,1761534633039,-1412.63,0.00043452,30]
[392473417,1761534633052,-966.06,0.00043452,30]
[392473418,1761534633061,-387.82,0.00043482,2]
[392473419,1761534633070,-1631.548,0.000435,2]
[392473420,1761534633080,-6493.929,0.000435,2]
[392473421,1761534633089,-558.0,0.000435,2]
[392473422,1761534633099,-150.0,0.00043534,30]
[392473423,1761534633108,-300.0,0.00043534,30]
[392473424,1761534633118,-1096.24,0.00043534,30]
[392473425,1761534633127,-301.04,0.00043534,30]
[392473426,1761534633137,-150.0,0.00043534,30]
[392473427,1761534633147,-150.0,0.00043534,30]
[392473428,1761534633156,-1096.24,0.00043534,30]
[392473429,1761534633165,-232.316448,0.00043542,2]
[392473430,1761534633174,-186.0,0.0004359,2]
[392473431,1761534633184,-186.0,0.00043627,2]
[392473432,1761534633195,-7468.8120802,0.00043689,2]
[392473433,1761534633204,-20363.46846423,0.00043698,2]
[392473434,1761534633214,-1096.24,0.00043726,30]
[392473435,1761534633224,-1096.24,0.00043726,30]
[392473436,1761534633234,-1096.24,0.00043726,30]
[392473437,1761534633243,-186.0,0.00043749,2]
[392473438,1761534633252,-391.92989967,0.00043808,2]
[392473439,1761534633261,-191.48467676,0.00043829,31]
[392473440,1761534633271,-340.39325207,0.00043829,31]
[392473441,1761534633280,-185.90734108,0.00043829,31]
[392473442,1761534633289,-24509.8946327,0.0004383,2]
[392473443,1761534633299,-500.0,0.00043835,120]
[392473444,1761534633308,-500.0,0.00043835,120]
[392473445,1761534633318,-500.0,0.00043835,120]
[392473446,1761534633327,-500.0,0.00043835,120]
[392473447,1761534633336,-500.0,0.00043835,120]
[392473448,1761534633346,-500.0,0.00043835,120]
[392473449,1761534633355,-584.64,0.00043835,120]
[392473450,1761534633365,-843.90762502,0.00043866,2]
[392473451,1761534633378,-1996.82085213,0.00043958,15]
[392473452,1761534633392,-23.76489159,0.00043958,15]
[392473453,1761534633401,-2020.58574367,0.00043981,15]
[392473454,1761534633410,-8759.01220759,0.00044,30]
[392473455,1761534633426,-5556.36606734,0.00044,30]
[392473456,1761534633435,-305.67810613,0.00044,120]
[392473457,1761534633450,-2622.01140951,0.00044,120]
[392473458,1761534633460,-2020.58574367,0.00044005,15]
[392473459,1761534633470,-2020.58574367,0.00044028,15]
[392473460,1761534633479,-787.2989,0.0004404,2]
[392473461,1761534633489,-1924.31997117,0.0004404,2]
[392473462,1761534633500,-575.68002883,0.0004404,2]
[392473463,1761534633510,-2020.58574367,0.00044052,15]
[392473464,1761534633520,-150.0,0.00044058,2]
[392473465,1761534633529,-208.0,0.00044058,2]
[392473466,1761534633538,-200.0,0.00044058,2]
[392473467,1761534633547,-204.701,0.00044058,2]
[392473468,1761534633557,-250.0,0.00044058,2]
[392473469,1761534633566,-214.03,0.00044058,2]
[392473470,1761534633576,-151.485,0.00044058,2]
[392473471,1761534633585,-254.506,0.00044058,2]
[392473472,1761534633594,-250.0,0.00044058,2]
[392473473,1761534633603,-188.526,0.00044058,2]
[392473474,1761534633612,-150.113,0.00044058,2]
[392473475,1761534633622,-151.131,0.00044058,2]
[392473476,1761534633630,-573.0,0.00044058,2]
[392473477,1761534633639,-2055.0,0.00044058,2]
[392473478,1761534633649,-3416.0,0.00044058,2]
[392473479,1761534633657,-820.0,0.00044058,2]
[392473480,1761534633666,-1380.54733462,0.00044058,2]
[392473509,1761534640201,-305.55524937,0.00043121,2]
[392473510,1761534640256,-692.33284863,0.00043121,2]
[392473511,1761534640266,-241.94083538,0.00043338,2]
[392473512,1761534640275,-3490.0,0.000435,2]
[392473513,1761534640285,-212.45266538,0.00044058,2]
[392473514,1761534640294,-606.0,0.00044058,2]
[392473515,1761534640305,-1313.0,0.00044058,2]
[392473516,1761534640314,-182.59465141,0.00044059,28]
[392473517,1761534640323,-2020.58574367,0.00044075,15]
[392473518,1761534640332,-2020.58574367,0.00044099,15]
[392473519,1761534640342,-1152.6594,0.0004411,21]
[392473520,1761534640352,-2020.58574367,0.00044122,15]
[392473521,1761534640361,-1614.7,0.00044139,2]
[392473522,1761534640380,-2217.08419105,0.0004414,120]
[392473523,1761534640391,-18176.56098604,0.0004414,120]
[392473524,1761534640401,-2020.58574367,0.00044146,15]
[392473525,1761534640410,-500.0,0.00044149,120]
[392473526,1761534640424,-511.300332,0.00044149,120]
[392473527,1761534640433,-981.62838544,0.00044149,15]
[392473528,1761534640442,-568.7946862,0.00044149,120]
[392473529,1761534640456,-791.47,0.00044149,120]
[392473530,1761534640466,-500.0,0.00044149,14]
[392473531,1761534640475,-500.0,0.00044149,2]
[392473532,1761534640485,-500.0,0.00044149,120]
[392473533,1761534640495,-500.0,0.00044149,120]
[392473534,1761534640504,-500.0,0.00044149,120]
[392473535,1761534640514,-500.0,0.00044149,120]
[392473536,1761534640523,-30527.6025,0.00044149,2]
[392473537,1761534640534,-981.62838542,0.00044151,15]
[392473538,1761534640543,-981.62838542,0.00044153,15]
[392473539,1761534640553,-981.62838542,0.00044156,15]
[392473540,1761534640563,-500.0,0.00044157,120]
[392473541,1761534640574,-741.5238992,0.00044157,16]
[392473542,1761534640583,-500.0,0.00044157,120]
[392473543,1761534640593,-500.0,0.00044157,120]
[392473544,1761534640603,-500.0,0.00044157,120]
[392473545,1761534640612,-159.22923048,0.00044157,120]
[392473546,1761534640621,-268.53425924,0.00044157,120]
[392473547,1761534640630,-500.0,0.00044157,120]
[392473548,1761534640639,-465.91197862,0.00044157,30]
[392473549,1761534640649,-500.0,0.00044157,120]
[392473550,1761534640659,-981.62838542,0.00044158,15]
[392473551,1761534640668,-686.7882459,0.00044158,3]
[392473552,1761534640678,-151.0,0.00044158,120]
[392473553,1761534640687,-151.0,0.00044158,120]
[392473554,1761534640696,-151.0,0.00044158,120]
[392473555,1761534640706,-151.0,0.00044158,120]
[392473556,1761534640714,-250.947597,0.00044158,120]
[392473557,1761534640723,-151.0,0.00044158,120]
[392473558,1761534640732,-151.0,0.00044158,60]
[392473559,1761534640742,-151.0,0.00044158,120]
[392473560,1761534640751,-151.0,0.00044158,120]
[392473561,1761534640760,-151.0,0.00044158,120]
[392473562,1761534640770,-151.0,0.00044158,120]
[392473563,1761534640780,-33200.2039,0.00044158,2]
[392473564,1761534640790,-686.7882459,0.00044159,3]
[392473565,1761534640800,-981.62838542,0.0004416,15]
[392473566,1761534640810,-981.62838542,0.00044162,15]
[392473567,1761534640819,-981.62838542,0.00044165,15]
[392473568,1761534640828,-981.62838542,0.00044167,15]
[392473569,1761534640836,-19024.4903,0.00044168,120]
[392473570,1761534640846,-5000.0,0.00044168,120]
[392473571,1761534640855,-164.55055549,0.00044169,14]
[392473572,1761534640864,-2020.58574367,0.00044169,15]
[392473573,1761534640873,-218.061819,0.00044169,120]
[392473574,1761534640883,-151.0,0.00044169,120]
[392473575,1761534640893,-981.62838542,0.00044169,15]
[392473576,1761534640903,-171.0475412,0.00044169,2]
[392473577,1761534640915,-182.59465136,0.00044179,28]
[392473578,1761534640924,-686.7882459,0.00044229,3]
[392473579,1761534640934,-686.7882459,0.00044237,3]
[392473580,1761534640943,-686.7882459,0.00044239,3]
[392473581,1761534640952,-1373.5764918,0.00044239,3]
[392473582,1761534640962,-1373.5764918,0.00044247,3]
[392473583,1761534640971,-4120.7294754,0.00044248,3]
[392473584,1761534640982,-195.61958734,0.00044249,120]
[392473585,1761534640991,-500.0,0.00044249,120]
[392473586,1761534641001,-163.01746851,0.00044249,120]
[392473587,1761534641010,-153.343284,0.00044249,120]
[392473588,1761534641020,-500.0,0.00044249,120]
[392473589,1761534641031,-500.0,0.00044249,120]
[392473590,1761534641041,-523.60049551,0.00044249,120]
[392473591,1761534641051,-300.0,0.00044249,2]
[392473592,1761534641060,-500.0,0.00044249,120]
[392473593,1761534641069,-171.22722588,0.00044249,120]
[392473594,1761534641079,-500.0,0.00044249,120]
[392473595,1761534641088,-500.0,0.00044249,120]
[392473596,1761534641098,-153.15143045,0.00044249,120]
[392473597,1761534641108,-465.76906697,0.00044249,120]
[392473598,1761534641117,-500.0,0.00044249,120]
[392473599,1761534641127,-150.63885898,0.00044249,120]
[392473600,1761534641136,-155.08425681,0.00044249,120]
[392473601,1761534641146,-197.18864704,0.00044249,120]
[392473602,1761534641156,-500.0,0.00044249,120]
[392473603,1761534641166,-194.32638018,0.00044249,120]
[392473604,1761534641177,-207.11917883,0.00044249,120]
[392473605,1761534641186,-185.96560803,0.00044249,120]
[392473606,1761534641195,-161.27595,0.00044249,15]
[392473607,1761534641204,-174.8870468,0.00044249,120]
[392473608,1761534641215,-173.51988681,0.00044249,120]
[392473609,1761534641224,-157.68381969,0.00044249,120]
[392473610,1761534641234,-235.238105,0.00044249,120]
[392473611,1761534641244,-500.0,0.00044249,2]
[392473612,1761534641253,-198.764361,0.00044249,120]
[392473613,1761534641263,-170.818559,0.00044249,120]
[392473614,1761534641273,-525.54468246,0.00044249,7]
[392473615,1761534641283,-515.15296543,0.00044249,120]
[392473616,1761534641292,-151.0,0.00044249,120]
[392473617,1761534641301,-177.361861,0.00044249,120]
[392473618,1761534641311,-170.067433,0.00044249,120]
[392473619,1761534641320,-163.82173922,0.00044249,120]
[392473620,1761534641329,-151.0,0.00044249,120]
[392473621,1761534641339,-151.0,0.00044249,120]
[392473622,1761534641348,-151.0,0.00044249,120]
[392473623,1761534641359,-500.0,0.00044249,120]
[392473624,1761534641372,-197.60596926,0.00044249,120]
[392473625,1761534641381,-170.73506168,0.00044249,120]
[392473626,1761534641391,-163.54742034,0.00044249,120]
[392473627,1761534641400,-500.0,0.00044249,120]
[392473628,1761534641411,-500.0,0.00044249,120]
[392473629,1761534641420,-500.0,0.00044249,120]
[392473630,1761534641430,-500.0,0.00044249,120]
[392473631,1761534641439,-500.0,0.00044249,120]
[392473632,1761534641451,-500.0,0.00044249,120]
[392473633,1761534641460,-316.29509161,0.00044249,120]
[392473634,1761534641471,-194.00358814,0.00044249,120]
[392473635,1761534641480,-500.0,0.00044249,120]
[392473636,1761534641489,-500.0,0.00044249,120]
[392473637,1761534641498,-209.28672341,0.00044249,120]
[392473638,1761534641508,-171.74431417,0.00044249,120]
[392473639,1761534641517,-151.0,0.00044249,120]
[392473640,1761534641527,-151.0,0.00044249,120]
[392473641,1761534641536,-151.0,0.00044249,120]
[392473642,1761534641545,-162.82506491,0.00044249,120]